Cogmind - Beta 14 @@@ ROGUE MODE // 2025.01.04 @ 07:47:37 // Winter2022/Polymind Player: Demo Result: Destroyed by S-27 Virus with Autogun Performance ------------- Evolutions (3) 1500 Regions Visited (6) 1200 Robots Destroyed (9) 45 Value Destroyed (573) 573 Prototype IDs (0) 0 Alien Tech Used (0) 0 Bonus (2300) 2300 TOTAL SCORE: 5548 Bonus ------- Polymind Skill 1600 Entered Garrisons 200 Used RIF Installer 500 Cogmind --------- Core Integrity 0/700 Matter 0/0 Energy 12/100 System Corruption 7% Temperature Cool (9) Movement Core (50) Location -7/Factory Parts ------- > --- POWER (1) -------- (None) > --- PROPULSION (2) --- (None) > --- UTILITY (1) ------ (None) > --- WEAPON (1) ------- (None) > --- INVENTORY (0) ---- (None) Peak State ------------ > --- POWER ------------ Improved Ion Engine > --- PROPULSION ------- Light Treads Light Treads > --- UTILITY ---------- Heat Sink Heat Sink Light Armor Plating > --- WEAPON ----------- Beam Rifle Heavy Assault Rifle > --- INVENTORY -------- (None) [Rating: 11] Favorites ----------- Power Improved Ion Engine Engine Improved Ion Engine Power Core Light Nuclear Core Propulsion Light Treads Treads Light Treads Leg Aluminum Leg Flight Unit Flight Unit Utility Heat Sink Device Heat Sink Protection Light Armor Plating Weapon Beam Rifle Energy Gun Beam Rifle Ballistic Gun Heavy Assault Rifle Build | -11 -10 -10 -10 -8 -8 -7 ------- Run | Yrd Mat Min Sub Mat Gar Fac Slots Evolved . | . . . . . . . Power . | . . . . . . . Propulsion . | . . . . . . . Utility . | . . . . . . . Weapon . | . . . . . . . Parts Attached . | . . . . . . . Power . | . . . . . . . Engine . | . . . . . . . Core . | . . . . . . . Reactor . | . . . . . . . Propulsion . | . . . . . . . Treads . | . . . . . . . Leg . | . . . . . . . Wheel . | . . . . . . . Hover . | . . . . . . . Flight . | . . . . . . . Utility . | . . . . . . . Device . | . . . . . . . Storage . | . . . . . . . Processor . | . . . . . . . Hackware . | . . . . . . . Protection . | . . . . . . . Artifact . | . . . . . . . Weapon . | . . . . . . . Energy Gun . | . . . . . . . Energy Cannon . | . . . . . . . Ballistic Gun . | . . . . . . . Ballistic Cannon . | . . . . . . . Launcher . | . . . . . . . Special Weapon . | . . . . . . . Impact Weapon . | . . . . . . . Slashing Weapon . | . . . . . . . Piercing Weapon . | . . . . . . . Special Melee Weapon . | . . . . . . . Unidentified Prototypes . | . . . . . . . Parts Lost 17 | . . . . . 4 13 Power 4 | . . . . . 1 3 Propulsion 6 | . . . . . 2 4 Utility 4 | . . . . . . 4 Weapon 3 | . . . . . 1 2 Highest Loss Streak 7 | . . . . . 2 7 To Critical Strikes . | . . . . . . . Average Slot Usage (%) 62 | . . . 75 100 73 92 Engine 8 | . . . 18 25 13 9 Treads 10 | . . . . . 7 21 Leg 1 | . . . . . . 2 Flight 7 | . . . 37 50 16 . Device 11 | . . . . . 7 22 Protection 5 | . . . . . 3 10 Energy Gun 5 | . . . . . 3 12 Ballistic Gun 10 | . . . 18 25 21 10 Peak Build Rating 11 | . . . 4 4 11 11 Average Rating 5 | . . . 3 4 4 10 On Entrance 2 | . . . . 4 4 11 Naked Turns 353 | . 16 320 8 . 1 8 Heaviest Build 18 | . . . 4 4 18 18 Greatest Support 40 | 3 3 3 8 8 40 40 Greatest Overweight (x) . | . . . . . . . Average Overweight (x) . | . . . . . . . Largest Inventory Capacity 1 | . . . . . 1 1 Average Capacity . | . . . . . . . Most Carried . | . . . . . . . Average Carried . | . . . . . . . Final Capacity 1 | . . . . . 1 . Final Carried . | . . . . . . . Class Distribution -------------------- 44% | Sentry 29% | Cogmind 23% | Swarmer 3% | Grunt Dominant Class ---------------- Cogmind | -10/Materials Cogmind | -10/Mines Swarmer | -10/Subcaves Swarmer | -8/Materials Swarmer | -8/Garrison Sentry | -7/Factory Resources | -11 -10 -10 -10 -8 -8 -7 ----------- Run | Yrd Mat Min Sub Mat Gar Fac Matter Collected 23 | . . . 5 . . 18 Remotely . | . . . . . . . Salvage Created 306 | . . . 41 . 79 186 Parts 17 | . . . 3 . 5 9 Haulers Intercepted . | . . . . . . . Recyclers Shooed . | . . . . . . . Parts Field Recycled . | . . . . . . . Retrieved Matter . | . . . . . . . Parts Self-Destructed 12 | . . . 12 . . . Prevented . | . . . . . . . Kills | -11 -10 -10 -10 -8 -8 -7 ------- Run | Yrd Mat Min Sub Mat Gar Fac Combat Hostiles Destroyed 9 | . . . 2 . 2 5 Guns 8 | . . . 2 . 2 4 Classes Destroyed 4 | . . . 1 . 1 2 Swarmer 2 | . . . 2 . . . Grunt 4 | . . . . . 2 2 Sentry 1 | . . . . . . 1 Programmer 2 | . . . . . . 2 Best Kill Streak 2 | . . . 2 . 2 2 Combat Bots Only 2 | . . . 2 . 2 2 Max Kills in Single Turn 1 | . . . 1 . 1 1 Gunslinging . | . . . . . . . Exploded . | . . . . . . . Melee . | . . . . . . . Uniques/NPCs Destroyed . | . . . . . . . Combat | -11 -10 -10 -10 -8 -8 -7 -------- Run | Yrd Mat Min Sub Mat Gar Fac Hostile Shots Fired 193 | . . . 7 20 28 138 Missed 47 | . . . 3 13 12 19 Damage Taken 2423 | . . . 53 84 232 2054 Core 896 | . . . 14 47 122 713 Absorbed by Shields . | . . . . . . . Core Remaining (%) 87 | 100 . . 94 . 69 . Volleys Fired 60 | . . . 3 . 19 38 Largest 2 | . . . 1 . 2 2 Hottest 79 | . . . 20 . 79 79 Shots Fired 81 | . . . 3 . 24 54 Gun 81 | . . . 3 . 24 54 Cannon . | . . . . . . . Launcher . | . . . . . . . Special . | . . . . . . . Kinetic 38 | . . . 3 . 19 16 Thermal 43 | . . . . . 5 38 Explosive . | . . . . . . . Electromagnetic . | . . . . . . . Robot Hit Streak 7 | . . . 2 . 7 7 Robot Miss Streak 3 | . . . 1 . 1 3 Penetration Max . | . . . . . . . Secondary Targets . | . . . . . . . Shots Hit Robots 53 | . . . 2 . 12 39 Core Hits 22 | . . . 2 . 9 11 Critical Kills . | . . . . . . . Critical Parts Destroyed . | . . . . . . . Critical Strikes 2 | . . . . . . 2 Burn 2 | . . . . . . 2 Melee Attacks . | . . . . . . . Impact . | . . . . . . . Slashing . | . . . . . . . Piercing . | . . . . . . . Sneak Attacks . | . . . . . . . Combat Hostiles . | . . . . . . . Follow-up Attacks . | . . . . . . . Damage Inflicted 741 | . . . 15 . 90 636 Guns 728 | . . . 15 . 90 623 Cannons . | . . . . . . . Explosions . | . . . . . . . Melee . | . . . . . . . Ramming 13 | . . . . . . 13 Kinetic 299 | . . . 15 . 90 194 Thermal 429 | . . . . . . 429 Explosive . | . . . . . . . Electromagnetic . | . . . . . . . Impact . | . . . . . . . Slashing . | . . . . . . . Piercing . | . . . . . . . Highest Corruption 7 | . . . . . . 7 Average Corruption 3 | . . . . . . 3 Corruption Purged . | . . . . . . . Corruption Blocked . | . . . . . . . Effects 3 | . . . . . . 3 Heat Flow Errors 2 | . . . . . . 2 Energy Discharges 1 | . . . . . . 1 Overload Shots . | . . . . . . . Overflow Damage 1 | . . . . . . 1 Projectiles . | . . . . . . . Explosions . | . . . . . . . Melee 1 | . . . . . . 1 Knockbacks . | . . . . . . . Impact . | . . . . . . . Kinetic . | . . . . . . . Secondary . | . . . . . . . Self-Inflicted Damage 5 | . . . . . . 5 Shots . | . . . . . . . Rammed 3 | . . . . . . 3 Targets Rammed 5 | . . . . . . 5 Kicked 2 | . . . . . . 2 Crushed . | . . . . . . . Highest Temperature 510 | . . . . 18 16 510 Average Temperature 209 | . . . . 11 5 232 Received Heat Transfer 675 | . . . 9 45 126 495 Effects 6 | . . . . . . 6 Energy Bleed 2 | . . . . . . 2 Interference 1 | . . . . . . 1 Short Circuit 2 | . . . . . . 2 Damage (minor) 1 | . . . . . . 1 Siege Activations . | . . . . . . . Robots Corrupted 1 | . . . . . . 1 Combat Hostiles 1 | . . . . . . 1 Parts Fried . | . . . . . . . Impact Corruptions 1 | . . . . . . 1 Robots Melted . | . . . . . . . Combat Hostiles . | . . . . . . . Parts Melted 3 | . . . . . . 3 Heat Transferred 1184 | . . . . . . 1184 Parts Sabotaged . | . . . . . . . Parts Stolen . | . . . . . . . Parts Stripped . | . . . . . . . Power Chain Reactions . | . . . . . . . Alert | -11 -10 -10 -10 -8 -8 -7 ------- Run | Yrd Mat Min Sub Mat Gar Fac Peak Influence 272 | . . . . 101 272 223 Initial 142 | . . . . 26 65 142 Average 87 | . . . . 39 120 132 Maximum Alert Level 1 | . . . . . 1 1 Low Security (%) 96 | 100 100 100 . 100 96 94 Level 1 3 | . . . . . 3 5 Level 2 . | . . . . . . . Level 3 . | . . . . . . . Level 4 . | . . . . . . . Level 5 . | . . . . . . . High Security . | . . . . . . . Max Security . | . . . . . . . Squads Dispatched 4 | . . . . 2 . 2 Investigation 1 | . . . . 1 . . Extermination 1 | . . . . . . 1 Reinforcement 2 | . . . . 1 . 1 Assault . | . . . . . . . Garrison . | . . . . . . . Intercept . | . . . . . . . Searches Triggered . | . . . . . . . Construction Impeded . | . . . . . . . Haulers Reinforced . | . . . . . . . Active Scanning Responses . | . . . . . . . Cargo Convoy Interrupts . | . . . . . . . Stealth | -11 -10 -10 -10 -8 -8 -7 --------- Run | Yrd Mat Min Sub Mat Gar Fac Distress Signals 1 | . . . . 1 . . Communications Jammed . | . . . . . . . Distress Signals . | . . . . . . . Times Spotted 53 | . . . 5 13 12 23 Peak Tracking Total 12 | . . . 3 12 10 7 Tactical Retreats 1 | . . . . . 1 . Traps | -11 -10 -10 -10 -8 -8 -7 ------- Run | Yrd Mat Min Sub Mat Gar Fac Traps Triggered 3 | . . . . . 2 1 Indirectly . | . . . . . . . Trap Hack Attempts . | . . . . . . . Triggered . | . . . . . . . Disarmed . | . . . . . . . Reprogrammed . | . . . . . . . Reused . | . . . . . . . Traps Extracted . | . . . . . . . Installed . | . . . . . . . Triggered . | . . . . . . . Machines | -11 -10 -10 -10 -8 -8 -7 ---------- Run | Yrd Mat Min Sub Mat Gar Fac Machines Disabled 2 | . . . . . 2 . Max in Single Turn 2 | . . . . . 2 . Phase Generator 1 | . . . . . 1 . Machines Repaired . | . . . . . . . Machines Dismantled . | . . . . . . . Machines Sabotaged . | . . . . . . . Overloaded Fab Kills . | . . . . . . . Hacking | -11 -10 -10 -10 -8 -8 -7 --------- Run | Yrd Mat Min Sub Mat Gar Fac Machines Accessed 3 | . . . . 1 . 2 Terminals 2 | . . . . . . 2 Fabricators . | . . . . . . . Repair Stations . | . . . . . . . Recycling Units . | . . . . . . . Scanalyzers . | . . . . . . . Garrison Access 1 | . . . . 1 . . Total Hacks 11 | . . . . 3 . 8 Successful 5 | . . . . 1 . 4 Failed 6 | . . . . 2 . 4 Catastrophic . | . . . . . . . Database Lockouts . | . . . . . . . Manual 7 | . . . . . . 7 Terminals 8 | . . . . . . 8 Fabricators . | . . . . . . . Repair Stations . | . . . . . . . Recycling Units . | . . . . . . . Scanalyzers . | . . . . . . . Garrison Access 3 | . . . . 3 . . Terminal Hacks 4 | . . . . . . 4 Zone Layout 4 | . . . . . . 4 Fabricator Hacks . | . . . . . . . Repair Station Hacks . | . . . . . . . Recycling Unit Hacks . | . . . . . . . Scanalyzer . | . . . . . . . Garrison Access Hacks 1 | . . . . 1 . . Unlock Access 1 | . . . . 1 . . Unauthorized Hacks . | . . . . . . . Terminals . | . . . . . . . Fabricators . | . . . . . . . Repair Stations . | . . . . . . . Recycling Units . | . . . . . . . Scanalyzers . | . . . . . . . Garrison Access . | . . . . . . . Data Cores Recovered . | . . . . . . . Used . | . . . . . . . Hacking Detections 3 | . . . . 1 . 2 Full Trace Events 1 | . . . . 1 . . Feedback Events . | . . . . . . . Feedback Blocked . | . . . . . . . Robot Schematics Acquired . | . . . . . . . Robots Built . | . . . . . . . Authchips . | . . . . . . . Time . | . . . . . . . Total Robot Build Rating . | . . . . . . . Part Schematics Acquired . | . . . . . . . Parts Built . | . . . . . . . Authchips . | . . . . . . . Time . | . . . . . . . Total Part Build Rating . | . . . . . . . Parts Repaired . | . . . . . . . Time . | . . . . . . . Parts Recycled . | . . . . . . . Recycled Matter . | . . . . . . . Retrieved Matter . | . . . . . . . Retrieved Components . | . . . . . . . Parts Scanalyzed . | . . . . . . . Part Schematics Acquired . | . . . . . . . Parts Damaged . | . . . . . . . Bothacking | -11 -10 -10 -10 -8 -8 -7 ------------ Run | Yrd Mat Min Sub Mat Gar Fac Used RIF Installer 1 | . . . . . 1 . Robots Hacked 5 | . . . 1 . 1 3 Non-combat . | . . . . . . . Combat 5 | . . . 1 . 1 3 Robot Hacks Applied 8 | . . . 1 . 1 6 find_shortcuts 5 | . . . 1 . 1 3 find_garrison 3 | . . . . . . 3 Relay Couplers Released . | . . . . . . . Fabnet Peak Effective % . | . . . . . . . Robots Rewired . | . . . . . . . Allies Hacked . | . . . . . . . Hacks Repelled . | . . . . . . . Allies | -11 -10 -10 -10 -8 -8 -7 -------- Run | Yrd Mat Min Sub Mat Gar Fac Total Allies . | . . . . . . . Largest Group . | . . . . . . . Highest-Rated Group . | . . . . . . . Highest-Rated Ally . | . . . . . . . Total Orders . | . . . . . . . Ally Attacks . | . . . . . . . Total Damage . | . . . . . . . Kills . | . . . . . . . Allies Corrupted . | . . . . . . . Allies Melted . | . . . . . . . Intel | -11 -10 -10 -10 -8 -8 -7 ------- Run | Yrd Mat Min Sub Mat Gar Fac Robot Analysis Total 3 | . . . 1 . 1 1 Derelict Logs Recovered . | . . . . . . . Drone Launches . | . . . . . . . Drone Recoveries . | . . . . . . . Exploration | -11 -10 -10 -10 -8 -8 -7 ------------- Run | Yrd Mat Min Sub Mat Gar Fac Turns Passed 1224 | 9 16 320 43 50 275 511 Spaces Moved 952 | 18 31 83 85 133 334 268 Core 242 | 18 31 83 7 . 84 19 Treads 276 | . . . . . 41 235 Legs 14 | . . . . . . 14 Wheels . | . . . . . . . Hover . | . . . . . . . Flight 420 | . . . 78 133 209 . Fastest Speed 37 | 50 50 50 37 37 37 50 Average Speed 77 | 50 50 50 38 37 55 150 Slowest Speed 160 | 50 50 50 50 37 160 160 Overloaded Moves . | . . . . . . . Propulsion Burnouts . | . . . . . . . Robots Hopped 5 | . . . . 4 1 . Cave-ins Triggered . | . . . . . . . Exploration Rate (%) 18 | 3 14 29 6 26 45 7 Regions Visited 6 Branch Regions 2 Pre-discovered Areas . | . . . . . . . Known Exits Taken 1 | . . . . 1 . . Unknown Exits Taken 4 | 1 1 1 1 . . . Scrap Searched . | . . . . . . . Spaces Dug . | . . . . . . . Terrain Destroyed 70 | . . . . . 70 . Melee . | . . . . . . . Projectile . | . . . . . . . AOE 70 | . . . . . 70 . Terrain Rammed . | . . . . . . . Walls Destroyed . | . . . . . . . Machines Disabled . | . . . . . . . Actions | -11 -10 -10 -10 -8 -8 -7 --------- Run | Yrd Mat Min Sub Mat Gar Fac Total 1349 | 17 30 360 92 129 399 322 Wait 314 | . . 278 5 . 20 11 Move 935 | 17 30 82 84 125 329 268 Hop 5 | . . . . 4 1 . Pick Up . | . . . . . . . Fast Attach . | . . . . . . . Attach . | . . . . . . . Detach . | . . . . . . . Swap . | . . . . . . . Drop . | . . . . . . . Fire 60 | . . . 3 . 19 38 Melee . | . . . . . . . Ram 3 | . . . . . . 3 Kick 2 | . . . . . . 2 Crush . | . . . . . . . Escape Stasis 30 | . . . . . 30 . Rewire . | . . . . . . . Trap . | . . . . . . . Miscellaneous . | . . . . . . . Route ------- -11/Scrapyard -10/Materials -10/Mines -10/Subcaves -8/Materials -8/Garrison (discovered 2 exits: *Fac x2) -7/Factory History --------- Turn | Location | Event 3 | -11/Scrapyard | Discovered new exit (range 15) 10 | -11/Scrapyard | Entered Materials 18 | -10/Materials | Discovered new exit (range 16) 26 | -10/Materials | Entered Mines 36 | -10/Mines | Met a Derelict bent on vengeance 344 | -10/Mines | Discovered new exit (range 4) 346 | -10/Mines | Entered Subcaves 346 | -10/Subcaves | Discovered new exit (range 5) 389 | -10/Subcaves | Entered Materials 439 | -8/Materials | Identified exit to Garrison 439 | -8/Materials | Entered Garrison 465 | -8/Garrison | Triggered checkpoint 479 | -8/Garrison | Discovered new exit (range 8) 482 | -8/Garrison | Attempted to access garrison exit controls, blocked by remote lockdown 493 | -8/Garrison | Triggered checkpoint 498 | -8/Garrison | Installed Relay Interface Framework 637 | -8/Garrison | Triggered checkpoint 706 | -8/Garrison | Phase Generator disabled 706 | -8/Garrison | Discovered new exit (range 6) 714 | -8/Garrison | Entered Factory 1198 | -7/Factory | Lost 7 parts (1p2n2u2w) 1209 | -7/Factory | Core integrity fell below 50% 1221 | -7/Factory | Core integrity fell below 20% 1225 | -7/Factory | Destroyed by S-27 Virus with Autogun Last Messages --------------- 01208_ U-05 Engineer lays Concrete. 01208_ Kicked S-27 Virus. 01209_ Aluminum Leg destroyed. 01209_ U-05 Engineer lays Concrete. 01209_ Kicked S-27 Virus out of the way. 01210_ U-05 Engineer lays Concrete. 01211_ Released control of G-47 Trooper. 01211_ K-01 Serf collects debris. 01212_ U-05 Engineer lays Concrete. 01213_ G-47 Trooper reactivates. 01214_ Took control of G-47 Trooper. 01215_ U-05 Engineer lays Concrete. 01215_ K-01 Serf collects debris. 01217_ Aluminum Leg severed. 01217_ Imp. Heat Sink destroyed. 01217_ Knocked back. 01219_ Aluminum Leg destroyed. 01222_ Lgt. Nuclear Core destroyed. 01224_ Released control of G-47 Trooper. 01225_ G-47 Trooper reactivates. Map ----- +----------------------------------------------------+ | ????????????????????# """" """" # """#????????? | | ????????????????????# """" """" # """#????##### | | ????????????????????# """" """" # ?????# | | ????????????????????# # ???????#! | | ????????????????????# ##+########## "" | | ????????????????????# ## + "" | | ????????????????????# ## ########## "" | | ????????????????????#######+####+## #????????# | | ????????????????????????# #????????##### | | ????????????????????????# #####+######??????? | | ????????????????????????# # # ?????? | | ????????????????????????# # # ??? | | ????????????????????????# # # | | ????????????????????????# # # | | ????????????????????????# # # | | ????????????????????????# # # """ | | ????????????????????????# #= ! # """ | | ????????????????????????# *%+%[ # """ | | ????????????????????????# #* # | | ????????????????????????# t# # | | ????????????????????????#[ u # + | | ????????????????????????# bss # #######+# | | ???????????+????????????#lg # #???# | | ????????????????????????# # #???# | | ????????????????????????# # #???# | | ????????????????????????#@ ################ | | ????????????????????????# | | ????????????????????????# g ######### | | ??????????????????###+###% ####????# | | ??????????? k ## ] ??# | | ??????????? ## # | | ??????????? ##! + | | ???????????? ## " " # | | ???????????? ## " ??# | | ?????????????################### ## ????# | | ???????????????????????? # ## " " # | | ???????????????????????? # ## " " # | | ???????????????????????? # ## " " # | | ???????????????????????? # ## " " + | | ???????????????????????? + ## " " # | | ???????????????????????? # ## " " # | | ???????????????????????? # ## # | | ???????????????????????? # #####+### | | ???????????????????????? # | | ???????????????????????? # | | ???????????????????????? # | | ???????????????????????? # | | ????????????????????????##+##### | | ?????????????????????????# #?####################+ | | ?????????????????????????# #?# # | +----------------------------------------------------+ Best States ------------- Heat Dissipation 40 Energy Generation 19 Energy Capacity 215 Matter Stores 100 Matter Capacity 100 Sight Range 16 Terrain Scan Density 10 Armor Coverage 150 Resistance: EX 50 Resistance: I 25 Evasion (%) 62 Recoil Reduction 2 Item Schematics ----------------- None Robot Schematics ------------------ None Fabricated ------------ Nothing Alien Tech Used ----------------- None Achievements -------------- None Challenges ------------ None Polymind | -11 -10 -10 -10 -8 -8 -7 ---------- Run | Yrd Mat Min Sub Mat Gar Fac Hosts 5 | . . . 1 . 1 3 Combat Hostiles 5 | . . . 1 . 1 3 Allies . | . . . . . . . Unique Host Classes 3 | . . . 1 . 1 1 Average Host Suspicion 71 | . . . 100 50 89 61 Unsuspicious Activity 37 | . . . . . 11 26 Returns to Shadow . | . . . . . . . Fuzzy Dispatches 1 | . . . . . . 1 Protomatter Created 90 | . . 5 26 . 18 41 Used 112 | . . . 6 . 23 83 Decayed 15 | . . 5 10 . . . Highest Spend 30 | . . . 6 . 23 30 Top 5 Hosts by Kills: S-10 Pest (-10/Subcaves: 4) Y-45 Defender (-7/Factory: 4) G-47 Trooper (-7/Factory: 1) Game ------ Seed TripodChargeBox Manual? 0 Play Time 00:08:19 Cumulative 123.4 hours Start 2025.01.04 @ 07:41:47 End 2025.01.04 @ 07:47:37 Sessions 1 Manual Loads 0 Difficulty Rogue Special Mode Winter2022/Polymind Game No. 158 Rogue 158 Adventurer 0 Explorer 0 Win Type - Total 1 Types 1/0/0/0/0/0/0/0/0 Lore% 54 Gallery% 67 Achievement% 54 Wizard Run 0 Options --------- Layout 1 ASCII 0 Keyboard 0 Movement Numpad Keybinds 0 Fullscreen 1 Font 24/Smallcaps Map View 50x35 Zoom Use 0% Tactical HUD 1 Map Filters NONE Filters NONE Steam 1 RUN: 837eb58b-2fef-46ee-8cc2-71f3838b0e08